fUSD/lending_fUSD_20250823
["ID","MTS","AMOUNT","RATE_DAILY","PERIOD"]
[380938514,1755909080239,-734.69,0.00013972,2]
[380938515,1755909080248,-400.0,0.00013972,2]
[380938516,1755909080258,-774.74,0.00013972,2]
[380938517,1755909080268,-400.0,0.00013972,2]
[380938518,1755909080278,-1283.05,0.00013972,2]
[380938519,1755909080287,-684.33,0.00013972,2]
[380938520,1755909080297,-554.16,0.00013972,2]
[380938521,1755909080306,-400.0,0.00013972,2]
[380938522,1755909080316,-923.64,0.00013972,2]
[380938523,1755909080326,-400.0,0.00013972,2]
[380938524,1755909080335,-400.0,0.00013972,2]
[380938525,1755909080344,-831.09,0.00013972,2]
[380938526,1755909080354,-1301.68,0.00013972,2]
[380938527,1755909080364,-724.59,0.00013972,2]
[380938528,1755909080373,-515.8,0.00013972,2]
[380938529,1755909080383,-618.62,0.00013972,2]
[380938530,1755909080393,-400.0,0.00013972,2]
[380938531,1755909080403,-400.0,0.00013972,2]
[380938532,1755909080413,-400.0,0.00013972,2]
[380938533,1755909080423,-1002.03,0.00013972,2]
[380938534,1755909080434,-400.0,0.00013972,2]
[380938535,1755909080443,-400.0,0.00013972,2]
[380938536,1755909080453,-400.0,0.00013972,2]
[380938537,1755909080463,-940.39,0.00013972,2]
[380938538,1755909080473,-400.0,0.00013972,2]
[380938539,1755909080482,-400.0,0.00013972,2]
[380938540,1755909080491,-400.0,0.00013972,2]
[380938541,1755909080501,-400.0,0.00013972,2]
[380938542,1755909080510,-682.02,0.00013972,2]
[380938543,1755909080520,-400.0,0.00013972,2]
[380938544,1755909080529,-933.3,0.00013972,2]
[380938545,1755909080539,-466.33,0.00013972,2]
[380938546,1755909080548,-448.21,0.00013972,2]
[380938547,1755909080557,-400.0,0.00013972,2]
[380938548,1755909080567,-400.0,0.00013972,2]
[380938549,1755909080576,-400.0,0.00013972,2]
[380938550,1755909080586,-400.0,0.00013972,2]
[380938551,1755909080595,-789.37,0.00013972,2]
[380938552,1755909080604,-400.0,0.00013972,2]
[380938553,1755909080614,-535.1,0.00013972,2]
[380938554,1755909080624,-400.0,0.00013972,2]
[380938555,1755909080634,-1243.51,0.00013972,2]
[380938556,1755909080644,-581.93,0.00013972,2]
[380938557,1755909080654,-412.28,0.00013972,2]
[380938558,1755909080663,-828.94,0.00013972,2]
[380938559,1755909080673,-400.0,0.00013972,2]
[380938560,1755909080682,-712.67,0.00013972,2]
[380938561,1755909080692,-779.34,0.00013972,2]
[380938562,1755909080702,-636.7,0.00013972,2]
[380938563,1755909080712,-401.25812845,0.00013972,2]
[380938564,1755909080722,-400.0,0.00013972,2]
[380938565,1755909080732,-495.96,0.00013972,2]
[380938566,1755909080751,-628.81,0.00013972,2]
[380938567,1755909080760,-400.0,0.00013972,2]
[380938568,1755909080770,-400.0,0.00013972,2]
[380938569,1755909080779,-400.0,0.00013972,2]
[380938570,1755909080788,-400.0,0.00013972,2]
[380938571,1755909080797,-400.0,0.00013972,2]
[380938572,1755909080807,-2007.17,0.00013972,2]
[380938573,1755909080816,-941.75,0.00013972,2]
[380938574,1755909080826,-400.0,0.00013972,2]
[380938575,1755909080835,-400.0,0.00013972,2]
[380938576,1755909080845,-400.0,0.00013972,2]
[380938577,1755909080854,-1107.09,0.00013972,2]
[380938578,1755909080865,-566.3,0.00013972,2]
[380938579,1755909080874,-971.09,0.00013972,2]
[380938580,1755909080884,-400.0,0.00013972,2]
[380938581,1755909080893,-585.02,0.00013972,2]
[380938582,1755909080903,-864.25,0.00013972,2]
[380938583,1755909080913,-400.0,0.00013972,2]
[380938584,1755909080922,-400.0,0.00013972,2]
[380938585,1755909080931,-1099.08,0.00013972,2]
[380938586,1755909080941,-676.57,0.00013972,2]
[380938587,1755909080950,-400.0,0.00013972,2]
[380938588,1755909080959,-400.0,0.00013972,2]
[380938589,1755909080971,-400.0,0.00013972,2]
[380938590,1755909080980,-634.31,0.00013972,2]
[380938591,1755909080991,-749.92,0.00013972,2]
[380938592,1755909081000,-894.75,0.00013972,2]
[380938593,1755909081010,-476.98,0.00013972,2]
[380938594,1755909081019,-455.35,0.00013972,2]
[380938595,1755909081029,-400.0,0.00013972,2]
[380938596,1755909081040,-1015.51,0.00013972,2]
[380938597,1755909081049,-634.38,0.00013972,2]
[380938598,1755909081152,-400.0,0.00013972,2]
[380938599,1755909081162,-440.79,0.00013972,2]
[380938600,1755909081171,-560.43,0.00013972,2]
[380938601,1755909081181,-667.33,0.00013972,2]
[380938602,1755909081191,-556.68,0.00013972,2]
[380938603,1755909081204,-400.0,0.00013972,2]
[380938604,1755909081213,-811.19,0.00013972,2]
[380938605,1755909081223,-1376.17,0.00013972,2]
[380938606,1755909081235,-769.3,0.00013972,2]
[380938607,1755909081244,-661.11,0.00013972,2]
[380938608,1755909081253,-400.0,0.00013972,2]
[380938609,1755909081263,-400.0,0.00013972,2]
[380938610,1755909081272,-984.19,0.00013972,2]
[380938611,1755909081282,-421.79,0.00013972,2]
[380938612,1755909081291,-531.99,0.00013972,2]
[380938613,1755909081302,-913.58,0.00013972,2]
[380938614,1755909081312,-657.18,0.00013972,2]
[380938615,1755909081322,-490.26,0.00013972,2]
[380938616,1755909081331,-400.0,0.00013972,2]
[380938617,1755909081341,-641.16,0.00013972,2]
[380938618,1755909081351,-472.42,0.00013972,2]
[380938619,1755909081360,-400.0,0.00013972,2]
[380938620,1755909081369,-400.0,0.00013972,2]
[380938621,1755909081379,-400.0,0.00013972,2]
[380938622,1755909081388,-884.67,0.00013972,2]
[380938623,1755909081398,-400.0,0.00013972,2]
[380938624,1755909081407,-1347.44,0.00013972,2]
[380938625,1755909081417,-1002.95,0.00013972,2]
[380938626,1755909081426,-400.0,0.00013972,2]
[380938627,1755909081436,-400.0,0.00013972,2]
[380938628,1755909081445,-400.0,0.00013972,2]
[380938629,1755909081454,-436.7,0.00013972,2]
[380938630,1755909081464,-400.0,0.00013972,2]
[380938631,1755909081472,-400.0,0.00013972,2]
[380938632,1755909081480,-471.73,0.00013972,2]
[380938633,1755909081494,-500.0,0.00013973,2]
[380938634,1755909081503,-500.0,0.00013973,2]
[380938635,1755909081513,-500.0,0.00013973,2]
[380938636,1755909081522,-500.0,0.00013973,2]
[380938637,1755909081531,-500.0,0.00013973,2]
[380938638,1755909081541,-503.43822729,0.00013973,2]
[380938639,1755909081550,-321.83870888,0.00013973,2]
[380938640,1755909081560,-160.08268272,0.00013973,2]
[380938641,1755909081569,-500.0,0.00013973,2]
[380938642,1755909081578,-500.12207836,0.00013973,2]
[380938643,1755909081588,-500.0,0.00013973,2]
[380938644,1755909081598,-500.0,0.00013973,2]
[380938645,1755909081607,-500.0,0.00013973,2]
[380938646,1755909081617,-522.06629229,0.00013973,2]
[380938647,1755909081627,-500.0,0.00013973,2]
[380938648,1755909081636,-500.0,0.00013973,2]
[380938649,1755909081646,-500.0,0.00013973,2]
[380938650,1755909081655,-500.0,0.00013973,2]
[380938651,1755909081665,-500.0,0.00013973,2]
[380938652,1755909081674,-500.0,0.00013973,2]
[380938653,1755909081684,-164.04573095,0.00013973,2]
[380938654,1755909081694,-500.0,0.00013973,2]
[380938655,1755909081703,-500.0,0.00013973,2]
[380938656,1755909081712,-500.0,0.00013973,2]
[380938657,1755909081721,-500.0,0.00013973,2]
[380938658,1755909081731,-500.0,0.00013973,2]
[380938659,1755909081741,-500.0,0.00013973,2]
[380938660,1755909081751,-500.0,0.00013973,2]
[380938661,1755909081764,-500.0,0.00013973,2]
[380938662,1755909081780,-276.11933998,0.00013973,2]
[380938663,1755909081790,-500.0,0.00013973,2]
[380938664,1755909081800,-500.0,0.00013973,2]
[380938665,1755909081810,-150.0,0.00013973,2]
[380938666,1755909081820,-150.0,0.00013975,2]
[380938667,1755909081830,-150.0,0.00013975,2]
[380938668,1755909081839,-150.0,0.00013975,2]
[380938669,1755909081849,-253.0,0.0001398,2]
[380938670,1755909081858,-18808.10595726,0.00013982,2]
[380938671,1755909081868,-192.333122,0.00013982,2]
[380938672,1755909081877,-192.333122,0.00013982,2]
[380938673,1755909081887,-192.333122,0.00013982,2]
[380938674,1755909081896,-192.333114,0.00013982,2]
[380938675,1755909081906,-151.0,0.00013982,2]
[380938676,1755909081915,-150.0,0.00013988,2]
[380938677,1755909081924,-150.0,0.00013988,2]
[380938678,1755909081933,-20043.06564457,0.0001399,7]
[380938679,1755909081943,-150.0,0.00013992,2]
[380938680,1755909081954,-1000.0,0.00013999,2]
[380938681,1755909081963,-1000.0,0.00013999,2]
[380938682,1755909081974,-256.734654,0.00013999,2]
[380938683,1755909081984,-500.0,0.00013999,2]
[380938684,1755909081994,-500.0,0.00013999,2]
[380938685,1755909082005,-1000.0,0.00014,2]
[380938686,1755909082014,-4338.51,0.00014,2]
[380938687,1755909082024,-1000.0,0.00014,2]
[380938688,1755909082034,-150.0,0.00014016,2]
[380938689,1755909082044,-150.0,0.00014023,2]
[380938690,1755909082053,-250.0,0.00014024,2]
[380938691,1755909082063,-200.0,0.00014024,2]
[380938692,1755909082072,-296.558,0.00014024,2]
[380938693,1755909082082,-250.0,0.00014024,2]
[380938694,1755909082092,-150.0,0.00014024,2]
[380938695,1755909082102,-150.0,0.00014024,2]
[380938696,1755909082111,-150.0,0.00014024,2]
[380938697,1755909082121,-150.0,0.00014024,2]
[380938698,1755909082130,-150.0,0.00014027,2]
[380938699,1755909082141,-150.0,0.00014039,2]
[380938700,1755909082150,-150.0,0.00014039,2]
[380938701,1755909082160,-150.0,0.00014039,2]
[380938702,1755909082170,-150.0,0.00014039,2]
[380938703,1755909082180,-150.0,0.00014039,2]
[380938704,1755909082191,-599.0,0.00014051,2]
[380938705,1755909082202,-1297.0,0.00014051,2]
[380938706,1755909082211,-566.0,0.00014051,2]
[380938707,1755909082221,-1657.0,0.00014051,2]
[380938708,1755909082234,-1173.0,0.00014051,2]
[380938709,1755909082244,-894.0,0.00014051,2]
[380938710,1755909082253,-150.0,0.00014062,2]
[380938711,1755909082264,-150.0,0.00014062,2]
[380938712,1755909082274,-4876.80150353,0.00014068,3]
[380938713,1755909082284,-150.0,0.00014071,2]
[380938714,1755909082294,-150.0,0.0001409,2]
[380938715,1755909082304,-150.0,0.0001409,2]
[380938716,1755909082314,-150.0,0.00014097,2]
[380938717,1755909082324,-253.0,0.00014101,2]
[380938718,1755909082334,-150.0,0.00014108,2]
[380938719,1755909082344,-253.0,0.00014117,2]
[380938720,1755909082354,-150.0,0.00014119,2]
[380938721,1755909082363,-150.0,0.00014124,2]
[380938722,1755909082373,-150.0,0.00014132,2]
[380938723,1755909082383,-476.0,0.0001414,2]
[380938724,1755909082392,-150.0,0.00014141,2]
[380938725,1755909082402,-166.66,0.00014143,2]
[380938726,1755909082411,-166.67,0.00014151,2]
[380938727,1755909082420,-150.0,0.00014155,2]
[380938728,1755909082429,-150.0,0.00014166,2]
[380938729,1755909082439,-150.0,0.00014166,2]
[380938730,1755909082448,-150.0,0.00014166,2]
[380938731,1755909082456,-150.0,0.00014166,2]
[380938732,1755909082468,-150.0,0.00014166,2]
[380938733,1755909082478,-150.0,0.00014166,2]
[380938734,1755909082489,-1000.0,0.0001417,2]
[380938735,1755909082498,-1800.0,0.0001417,2]
[380938736,1755909082508,-253.0,0.00014178,2]
[380938737,1755909082517,-150.0,0.00014192,2]
[380938738,1755909082527,-150.0,0.00014192,2]
[380938739,1755909082536,-168.0,0.00014196,2]
[380938740,1755909082546,-500.0,0.00014199,2]
[380938741,1755909082556,-500.0,0.00014199,2]
[380938742,1755909082565,-500.0,0.00014199,2]
[380938743,1755909082575,-500.0,0.00014199,2]
[380938744,1755909082585,-501.27855693,0.00014199,2]
[380938745,1755909082595,-1000.0,0.000142,2]
[380938746,1755909082605,-1566.0,0.000142,2]
[380938747,1755909082615,-150.0,0.00014201,2]
[380938748,1755909082625,-150.0,0.00014201,2]
[380938749,1755909082635,-150.0,0.00014209,2]
[380938750,1755909082645,-150.0,0.00014214,2]
[380938751,1755909082655,-151.0,0.0001423,2]
[380938752,1755909082665,-150.0,0.00014232,2]
[380938753,1755909082675,-792.13733245,0.00014232,2]
[380938754,1755909082686,-1009.58679626,0.00014233,2]
[380938755,1755909082695,-1227.03626007,0.00014233,2]
[380938756,1755909082705,-1444.48572388,0.00014234,2]
[380938757,1755909082716,-1661.93518769,0.00014234,2]
[380938758,1755909082725,-1879.3846515,0.00014235,2]
[380938759,1755909082734,-2096.83411531,0.00014235,2]
[380938760,1755909082745,-2314.28357912,0.00014236,2]
[380938761,1755909082754,-2531.73304293,0.00014236,2]
[380938762,1755909082763,-150.0,0.00014236,2]
[380938763,1755909082773,-159.25993501,0.00014243,2]
[380938764,1755909082782,-150.0,0.00014243,2]
[380938765,1755909082792,-585.91645729,0.00014245,2]
[380938766,1755909082802,-150.0,0.00014245,2]
[380938767,1755909082811,-303.42377007,0.00014246,2]
[380938768,1755909082821,-200.0,0.00014246,2]
[380938769,1755909082831,-200.0,0.00014246,2]
[380938770,1755909082840,-200.0,0.00014246,2]
[380938771,1755909082850,-500.0,0.00014246,2]
[380938772,1755909082859,-200.0,0.00014246,2]
[380938773,1755909082868,-202.69890409,0.00014246,2]
[380938774,1755909082878,-150.0,0.00014246,2]
[380938775,1755909082899,-500.0,0.00014246,2]
[380938776,1755909082909,-729.0,0.00014246,2]
[380938777,1755909082919,-150.0,0.00014246,2]
[380938778,1755909082928,-500.0,0.00014246,2]
[380938779,1755909082938,-150.0,0.00014246,2]
[380938780,1755909082948,-470.0,0.00014246,2]
[380938781,1755909082958,-150.0,0.00014246,2]
[380938782,1755909082968,-158.5445144,0.00014246,2]
[380938783,1755909082978,-150.0,0.00014246,2]
[380938784,1755909082988,-500.0,0.00014246,2]
[380938785,1755909082998,-500.0,0.00014246,2]
[380938786,1755909083008,-765.0,0.00014246,2]
[380938787,1755909083018,-500.0,0.00014246,2]
[380938788,1755909083028,-500.0,0.00014246,2]
[380938789,1755909083041,-150.0,0.00014246,2]
[380938790,1755909083050,-150.0,0.00014246,2]
[380938791,1755909083060,-200.0,0.00014246,2]
[380938792,1755909083070,-400.0,0.00014246,2]
[380938793,1755909083080,-400.0,0.00014246,2]
[380938794,1755909083089,-400.0,0.00014246,2]
[380938795,1755909083099,-612.02,0.00014246,2]
[380938796,1755909083113,-603.48,0.00014246,2]
[380938797,1755909083123,-448.19,0.00014246,2]
[380938798,1755909083133,-400.0,0.00014246,2]
[380938799,1755909083143,-400.0,0.00014246,2]
[380938800,1755909083152,-153.492172,0.00014246,2]
[380938801,1755909083161,-431.57,0.00014246,2]
[380938802,1755909083170,-400.0,0.00014246,2]
[380938803,1755909083180,-400.0,0.00014246,2]
[380938804,1755909083192,-400.0,0.00014246,2]
[380938805,1755909083201,-434.66,0.00014246,2]
[380938806,1755909083211,-400.0,0.00014246,2]
[380938807,1755909083221,-649.59,0.00014246,2]
[380938808,1755909083231,-681.46,0.00014246,2]
[380938809,1755909083242,-472.35,0.00014246,2]
[380938810,1755909083251,-400.0,0.00014246,2]
[380938811,1755909083261,-400.0,0.00014246,2]
[380938812,1755909083273,-400.0,0.00014246,2]
[380938813,1755909083283,-400.0,0.00014246,2]
[380938814,1755909083293,-409.04,0.00014246,2]
[380938815,1755909083303,-235.795947,0.00014246,2]
[380938816,1755909083313,-546.13,0.00014246,2]
[380938817,1755909083323,-534.48,0.00014246,2]
[380938818,1755909083333,-635.82,0.00014246,2]
[380938819,1755909083343,-400.0,0.00014246,2]
[380938820,1755909083353,-476.99,0.00014246,2]
[380938821,1755909083363,-400.0,0.00014246,2]
[380938822,1755909083374,-507.78,0.00014246,2]
[380938823,1755909083383,-400.0,0.00014246,2]
[380938824,1755909083392,-400.0,0.00014246,2]
[380938825,1755909083402,-400.0,0.00014246,2]
[380938826,1755909083411,-400.0,0.00014246,2]
[380938827,1755909083422,-744.95,0.00014246,2]
[380938828,1755909083433,-590.74,0.00014246,2]
[380938829,1755909083442,-400.0,0.00014246,2]
[380938830,1755909083453,-575.25,0.00014246,2]
[380938831,1755909083463,-400.0,0.00014246,2]
[380938832,1755909083473,-400.0,0.00014246,2]
[380938833,1755909083483,-990.54657,0.00014246,2]
[380938834,1755909083493,-400.0,0.00014246,2]
[380938835,1755909083503,-400.0,0.00014246,2]
[380938836,1755909083518,-400.0,0.00014246,2]
[380938837,1755909083528,-400.0,0.00014246,2]
[380938838,1755909083538,-400.0,0.00014246,2]
[380938839,1755909083548,-400.0,0.00014246,2]
[380938840,1755909083558,-400.0,0.00014246,2]
[380938841,1755909083567,-400.0,0.00014246,2]
[380938842,1755909083578,-400.0,0.00014246,2]
[380938843,1755909083588,-528.20398216,0.00014246,2]
[380938844,1755909083598,-400.0,0.00014246,2]
[380938845,1755909083610,-400.0,0.00014246,2]
[380938846,1755909083620,-400.0,0.00014246,2]
[380938847,1755909083631,-477.98,0.00014246,2]
[380938848,1755909083641,-410.44,0.00014246,2]
[380938849,1755909083651,-400.0,0.00014246,2]
[380938850,1755909083660,-692.3,0.00014246,2]
[380938851,1755909083670,-600.48,0.00014246,2]
[380938852,1755909083680,-400.0,0.00014246,2]
[380938853,1755909083692,-400.0,0.00014246,2]
[380938854,1755909083702,-402.6,0.00014246,2]
[380938855,1755909083711,-400.0,0.00014246,2]
[380938856,1755909083721,-400.0,0.00014246,2]
[380938857,1755909083731,-400.0,0.00014246,2]
[380938858,1755909083742,-400.0,0.00014246,2]
[380938859,1755909083751,-400.0,0.00014246,2]
[380938860,1755909083761,-685.13,0.00014246,2]
[380938861,1755909083771,-400.0,0.00014246,2]
[380938862,1755909083781,-400.0,0.00014246,2]
[380938863,1755909083791,-400.0,0.00014246,2]
[380938864,1755909083801,-400.0,0.00014246,2]
[380938865,1755909083812,-400.0,0.00014246,2]
[380938866,1755909083822,-580.21,0.00014246,2]
[380938867,1755909083832,-400.0,0.00014246,2]
[380938868,1755909083842,-628.41,0.00014246,2]
[380938869,1755909083852,-400.0,0.00014246,2]
[380938870,1755909083863,-699.23,0.00014246,2]
[380938871,1755909083873,-400.0,0.00014246,2]
[380938872,1755909083883,-400.0,0.00014246,2]
[380938873,1755909083893,-400.0,0.00014246,2]
[380938874,1755909083903,-400.0,0.00014246,2]
[380938875,1755909083915,-740.51,0.00014246,2]
[380938876,1755909083925,-469.22,0.00014246,2]
[380938877,1755909083935,-440.08,0.00014246,2]
[380938878,1755909083946,-1031.94,0.00014246,2]
[380938879,1755909083956,-622.9,0.00014246,2]
[380938880,1755909083968,-400.0,0.00014246,2]
[380938881,1755909083978,-400.0,0.00014246,2]
[380938882,1755909083988,-419.57,0.00014246,2]
[380938883,1755909083998,-403.45196274,0.00014246,2]
[380938884,1755909084008,-400.0,0.00014246,2]
[380938885,1755909084019,-511.83,0.00014246,2]
[380938886,1755909084029,-400.0,0.00014246,2]
[380938887,1755909084039,-620.5,0.00014246,2]
[380938888,1755909084050,-400.0,0.00014246,2]
[380938889,1755909084062,-608.92,0.00014246,2]
[380938890,1755909084072,-738.22,0.00014246,2]
[380938891,1755909084085,-699.72,0.00014246,2]
[380938892,1755909084096,-402.65,0.00014246,2]
[380938893,1755909084108,-400.0,0.00014246,2]
[380938894,1755909084119,-400.0,0.00014246,2]
[380938895,1755909084132,-566.41,0.00014246,2]
[380938896,1755909084144,-400.0,0.00014246,2]
[380938897,1755909084158,-400.0,0.00014246,2]
[380938898,1755909084169,-692.55,0.00014246,2]
[380938899,1755909084180,-400.0,0.00014246,2]
[380938900,1755909084194,-681.21,0.00014246,2]
[380938901,1755909084204,-400.0,0.00014246,2]
[380938902,1755909084216,-400.0,0.00014246,2]
[380938903,1755909084226,-461.28,0.00014246,2]
[380938904,1755909084238,-489.89,0.00014246,2]
[380938905,1755909084249,-566.05,0.00014246,2]
[380938906,1755909084260,-519.36048611,0.00014246,2]
[380938907,1755909084273,-414.87,0.00014246,2]
[380938908,1755909084284,-400.0,0.00014246,2]
[380938909,1755909084294,-400.0,0.00014246,2]
[380938910,1755909084305,-400.0,0.00014246,2]
[380938911,1755909084316,-475.17,0.00014246,2]
[380938912,1755909084328,-411.77,0.00014246,2]
[380938913,1755909084339,-400.0,0.00014246,2]
[380938914,1755909084350,-400.0,0.00014246,2]
[380938915,1755909084361,-400.0,0.00014246,2]
[380938916,1755909084374,-400.0,0.00014246,2]
[380938917,1755909084384,-400.0,0.00014246,2]
[380938918,1755909084395,-410.23,0.00014246,2]
[380938919,1755909084406,-400.0,0.00014246,2]
[380938920,1755909084417,-400.0,0.00014246,2]
[380938921,1755909084428,-400.0,0.00014246,2]
[380938922,1755909084438,-639.2,0.00014246,2]
[380938923,1755909084449,-477.58,0.00014246,2]
[380938924,1755909084459,-400.0,0.00014246,2]
[380938925,1755909084470,-972.5,0.00014246,2]
[380938926,1755909084480,-414.05,0.00014246,2]
[380938927,1755909084491,-467.39,0.00014246,2]
[380938928,1755909084501,-400.0,0.00014246,2]
[380938929,1755909084512,-400.0,0.00014246,2]
[380938930,1755909084523,-400.0,0.00014246,2]
[380938931,1755909084534,-667.14,0.00014246,2]
[380938932,1755909084545,-400.0,0.00014246,2]
[380938933,1755909084555,-532.87,0.00014246,2]
[380938934,1755909084567,-400.0,0.00014246,2]
[380938935,1755909084578,-442.87,0.00014246,2]
[380938936,1755909084590,-788.52,0.00014246,2]
[380938937,1755909084601,-400.0,0.00014246,2]
[380938938,1755909084612,-400.0,0.00014246,2]
[380938939,1755909084622,-413.86,0.00014246,2]
[380938940,1755909084633,-528.62,0.00014246,2]
[380938941,1755909084644,-400.0,0.00014246,2]
[380938942,1755909084655,-277.58962561,0.00014246,2]
[380938943,1755909084665,-858.81,0.00014246,2]
[380938944,1755909084676,-400.0,0.00014246,2]
[380938945,1755909084687,-400.0,0.00014246,2]
[380938946,1755909084698,-962.13,0.00014246,2]
[380938947,1755909084708,-291.02621475,0.00014246,2]
[380938948,1755909084719,-640.39,0.00014246,2]
[380938949,1755909084729,-400.0,0.00014246,2]
[380938950,1755909084741,-400.0,0.00014246,2]
[380938951,1755909084751,-400.0,0.00014246,2]
[380938952,1755909084762,-400.0,0.00014246,2]
[380938953,1755909084772,-400.0,0.00014246,2]
[380938954,1755909084783,-495.39,0.00014246,2]
[380938955,1755909084793,-487.98147612,0.00014246,2]
[380938956,1755909084804,-431.15,0.00014246,2]
[380938957,1755909084824,-412.84,0.00014246,2]
[380938958,1755909084835,-469.42,0.00014246,2]
[380938959,1755909084846,-400.0,0.00014246,2]
[380938960,1755909084856,-1194.0,0.00014246,2]
[380938961,1755909084867,-400.0,0.00014246,2]
[380938962,1755909084878,-400.0,0.00014246,2]
[380938963,1755909084888,-400.0,0.00014246,2]
[380938964,1755909084900,-400.0,0.00014246,2]
[380938965,1755909084911,-400.0,0.00014246,2]
[380938966,1755909084922,-719.77,0.00014246,2]
[380938967,1755909084933,-400.0,0.00014246,2]
[380938968,1755909084944,-1072.22,0.00014246,2]
[380938969,1755909084957,-571.55,0.00014246,2]
[380938970,1755909084968,-163.35,0.00014246,2]
[380938971,1755909084979,-400.0,0.00014246,2]
[380938972,1755909084990,-467.16917606,0.00014246,2]
[380938973,1755909085001,-402.59,0.00014246,2]
[380938974,1755909085014,-511.73,0.00014246,2]
[380938975,1755909085024,-400.0,0.00014246,2]
[380938976,1755909085035,-400.0,0.00014246,2]
[380938977,1755909085046,-839.94,0.00014246,2]
[380938978,1755909085057,-796.82,0.00014246,2]
[380938979,1755909085068,-697.65,0.00014246,2]
[380938980,1755909085079,-575.9,0.00014246,2]
[380938981,1755909085090,-486.14,0.00014246,2]
[380938982,1755909085101,-400.0,0.00014246,2]
[380938983,1755909085112,-499.82,0.00014246,2]
[380938984,1755909085123,-400.0,0.00014246,2]
[380938985,1755909085134,-400.0,0.00014246,2]
[380938986,1755909085144,-400.0,0.00014246,2]
[380938987,1755909085155,-400.0,0.00014246,2]
[380938988,1755909085166,-400.0,0.00014246,2]
[380938989,1755909085176,-400.0,0.00014246,2]
[380938990,1755909085187,-400.0,0.00014246,2]
[380938991,1755909085200,-400.0,0.00014246,2]
[380938992,1755909085211,-400.0,0.00014246,2]
[380938993,1755909085222,-400.0,0.00014246,2]
[380938994,1755909085233,-400.0,0.00014246,2]
[380938995,1755909085244,-900.25,0.00014246,2]
[380938996,1755909085254,-814.32,0.00014246,2]
[380938997,1755909085265,-400.0,0.00014246,2]
[380938998,1755909085275,-471.99,0.00014246,2]
[380938999,1755909085286,-657.79,0.00014246,2]
[380939000,1755909085296,-442.56,0.00014246,2]
[380939001,1755909085307,-529.89,0.00014246,2]
[380939002,1755909085318,-400.0,0.00014246,2]
[380939003,1755909085329,-390.56495886,0.00014246,2]
[380939004,1755909085339,-400.0,0.00014246,2]
[380939005,1755909085351,-400.0,0.00014246,2]
[380939006,1755909085361,-400.0,0.00014246,2]
[380939007,1755909085372,-1017.87,0.00014246,2]
[380939008,1755909085383,-400.0,0.00014246,2]
[380939009,1755909085393,-400.0,0.00014246,2]
[380939010,1755909085404,-638.0,0.00014246,2]
[380939011,1755909085415,-400.0,0.00014246,2]
[380939012,1755909085425,-400.0,0.00014246,2]
[380939013,1755909085436,-410.77,0.00014246,2]